[Event "94th FRA-ch Women 2019"]
[Site "Chartres"]
[Date "2019.08.21"]
[Round "5.5"]
[White "Leconte, Maria"]
[Black "Safranska, Anda"]
[Result "1/2-1/2"]
[ECO "B15"]
[WhiteElo "2252"]
[BlackElo "2128"]
[Annotator "NA"]
[PlyCount "65"]
[EventDate "2019.08.17"]
[EventType "tourn"]
[EventCountry "FRA"]
[SourceTitle "playchess.com"]
[Source "ChessBase"]
[SourceQuality "1"]
[TimeControl "40/5400+30:1800+30"]

1. e4 {[%emt 0:00:00]} c6 {[%emt 0:00:00]} 2. d4 {[%emt 0:00:11]} d5 {[%emt 0:00:16]} 3. Nc3 {[%emt 0:00:16]} dxe4 {[%emt 0:00:13]} 4. Nxe4 {[%emt 0:00:05]} Nf6 {[%emt 0:00:06]} 5. Nxf6+ {[%emt 0:03:03]} exf6 {[%emt 0:00:05]} 6. c3 {[%emt 0:02:32]} Bf5 {[%emt 0:00:09]} 7. Bd3 {[%emt 0:06:35]} Bxd3 {[%emt 0:00:39]} 8. Qxd3 {[%emt 0:00:06]} Bd6 {[%emt 0:00:07]} 9. Qe4+ {[%emt 0:12:34]} Qe7 {[%emt 0:00:07]} 10. Qxe7+ {[%emt 0:00:06]} Kxe7 {[%emt 0:00:04]} 11. Ne2 {[%emt 0:00:54]} Nd7 {[%emt 0:00:24]} 12. O-O {[%emt 0:00:52]} Nb6 {[%emt 0:05:15]} 13. Ng3 {[%emt 0:02:17]} Bxg3 {[%emt 0:02:35]} 14. fxg3 {[%emt 0:03:33]} Rhe8 {[%emt 0:05:08]} 15. Bf4 {[%emt 0:10:07]} Kd7 {[%emt 0:04:26]} 16. Rae1 {[%emt 0:04:28]} Nd5 {[%emt 0:04:00]} 17. Bd2 {[%emt 0:03:56]} b5 {[%emt 0:03:11]} 18. g4 {[%emt 0:01:24]} a5 {[%emt 1:12:15]} 19. Kf2 {[%emt 0:02:46]} a4 {[%emt 0:00:00]} 20. Re2 {[%emt 0:10:45]} Re6 {[%emt 0:00:00]} 21. Rxe6 {[%emt 0:01:12]} fxe6 {[%emt 0:00:00]} 22. Ke2 {[%emt 0:00:23]} Kd6 {[%emt 0:00:00]} 23. Kd3 {[%emt 0:01:43]} h6 {[%emt 0:00:00]} 24. Be1 {[%emt 0:13:26]} c5 {[%emt 0:00:00]} 25. Bg3+ {[%emt 0:00:05]} Kc6 {[%emt 0:00:00]} 26. dxc5 {[%emt 0:05:15]} Kxc5 {[%emt 0:00:00]} 27. Bf2+ {[%emt 0:02:30]} Kc6 {[%emt 0:00:00]} 28. Re1 {[%emt 0:01:38]} Re8 {[%emt 0:00:00]} 29. b3 {[%emt 0:02:23]} axb3 {[%emt 0:00:00]} 30. axb3 {[%emt 0:00:01]} Nc7 {[%emt 0:00:00]} 31. c4 {[%emt 0:01:29]} Rd8+ {[%emt 0:06:30]} 32. Kc3 {[%emt 0:00:56]} bxc4 {[%emt 0:00:00]} 33. bxc4 {[%emt 0:00:58]} 1/2-1/2

[Event "94th FRA-ch Women 2019"]
[Site "Chartres"]
[Date "2019.08.22"]
[Round "6.1"]
[White "Richard, Emma"]
[Black "Thomas, Anysia"]
[Result "1-0"]
[ECO "B31"]
[WhiteElo "2104"]
[BlackElo "2158"]
[Annotator "NA"]
[PlyCount "57"]
[EventDate "2019.08.17"]
[EventType "tourn"]
[EventCountry "FRA"]
[SourceTitle "playchess.com"]
[Source "ChessBase"]
[SourceQuality "1"]
[TimeControl "40/5400+30:1800+30"]

1. e4 {[%emt 0:00:00]} c5 {[%emt 0:00:00]} 2. Nc3 {[%emt 0:00:00]} Nc6 {[%emt 0:00:00]} 3. Nf3 {[%emt 0:00:00]} g6 {[%emt 0:00:00]} 4. Bb5 {[%emt 0:00:00]} Nd4 {[%emt 0:00:26]} 5. Ba4 {[%emt 0:00:09]} Bg7 {[%emt 0:02:13]} 6. O-O {[%emt 0:00:07]} a6 {[%emt 0:04:50]} 7. Nxd4 {[%emt 0:01:30]} cxd4 {[%emt 0:00:08]} 8. Ne2 {[%emt 0:00:04]} b5 {[%emt 0:04:04]} 9. Bb3 {[%emt 0:00:06]} Bb7 {[%emt 0:00:06]} 10. d3 {[%emt 0:00:47]} e6 {[%emt 0:03:06]} 11. f4 {[%emt 0:05:40]} Ne7 {[%emt 0:03:30]} 12. f5 {[%emt 0:09:15]} Nc6 {[%emt 0:05:59]} 13. a3 {[%emt 0:12:54]} O-O {[%emt 0:05:49]} 14. Qe1 {[%emt 0:15:02]} a5 {[%emt 0:17:59]} 15. Qg3 {[%emt 0:11:49]} a4 {[%emt 0:21:39]} 16. Ba2 {[%emt 0:00:04]} Bc8 {[%emt 0:06:25]} 17. Bg5 {[%emt 0:07:48]} f6 {[%emt 0:00:34]} 18. fxe6 {[%emt 0:13:59]} dxe6 {[%emt 0:00:40]} 19. Bf4 {[%emt 0:01:39]} Rf7 {[%emt 0:09:49]} 20. h4 {[%emt 0:07:43]} Raa7 {[%emt 0:01:37]} 21. h5 {[%emt 0:01:01]} g5 {[%emt 0:00:52]} 22. Bd2 {[%emt 0:00:07]} h6 {[%emt 0:01:05]} 23. c3 {[%emt 0:02:47]} Kh8 {[%emt 0:06:57]} 24. cxd4 {[%emt 0:03:17]} Nxd4 {[%emt 0:01:02]} 25. Nxd4 {[%emt 0:00:03]} Qxd4+ {[%emt 0:00:03]} 26. Be3 {[%emt 0:00:08]} Qxb2 {[%emt 0:01:50]} 27. Bxa7 {[%emt 0:00:14]} Rxa7 {[%emt 0:00:03]} 28. Qb8 {[%emt 0:07:47]} Kh7 {[%emt 0:02:26]} 29. Qxa7 {[%emt 0:00:00]} 1-0

[Event "94th FRA-ch Women 2019"]
[Site "Chartres"]
[Date "2019.08.22"]
[Round "6.2"]
[White "Safranska, Anda"]
[Black "Guichard, Pauline"]
[Result "0-1"]
[ECO "C00"]
[WhiteElo "2128"]
[BlackElo "2405"]
[Annotator "NA"]
[PlyCount "110"]
[EventDate "2019.08.17"]
[EventType "tourn"]
[EventCountry "FRA"]
[SourceTitle "playchess.com"]
[Source "ChessBase"]
[SourceQuality "1"]
[TimeControl "40/5400+30:1800+30"]

1. Nf3 {[%emt 0:00:00]} d5 {[%emt 0:00:00]} 2. g3 {[%emt 0:00:00]} Nf6 {[%emt 0:00:00]} 3. Bg2 {[%emt 0:00:00]} e6 {[%emt 0:00:00]} 4. d3 {[%emt 0:00:48]} Be7 {[%emt 0:00:08]} 5. O-O {[%emt 0:00:10]} O-O {[%emt 0:00:11]} 6. Nbd2 {[%emt 0:00:15]} c5 {[%emt 0:00:16]} 7. e4 {[%emt 0:00:36]} Nc6 {[%emt 0:00:15]} 8. Re1 {[%emt 0:01:36]} b5 {[%emt 0:00:13]} 9. e5 {[%emt 0:02:03]} Nd7 {[%emt 0:00:14]} 10. Nf1 {[%emt 0:01:41]} Bb7 {[%emt 0:01:26]} 11. h4 {[%emt 0:00:18]} Qc7 {[%emt 0:00:42]} 12. Bf4 {[%emt 0:00:15]} Rfc8 {[%emt 0:00:30]} 13. N1h2 {[%emt 1:28:48]} Bf8 {[%emt 0:16:15]} 14. h5 {[%emt 0:00:00]} h6 {[%emt 0:00:09]} 15. Ng4 {[%emt 0:00:00]} Qd8 {[%emt 0:02:44]} 16. a3 {[%emt 0:00:00]} a5 {[%emt 0:00:45]} 17. Qd2 {[%emt 0:00:00]} a4 {[%emt 0:04:10]} 18. Rad1 {[%emt 0:00:00]} b4 {[%emt 1:11:02]} 19. Ra1 {[%emt 0:00:00]} Ra6 {[%emt 0:00:00]} 20. Bf1 {[%emt 0:00:00]} Rca8 {[%emt 0:00:00]} 21. Qc1 {[%emt 0:00:00]} Rb6 {[%emt 0:00:00]} 22. Be3 {[%emt 0:00:00]} Ne7 {[%emt 0:00:00]} 23. Bg2 {[%emt 0:00:00]} Bc6 {[%emt 0:00:00]} 24. axb4 {[%emt 0:00:00]} Rxb4 {[%emt 0:00:00]} 25. Bf4 {[%emt 0:00:00]} Rab8 {[%emt 0:00:00]} 26. Ra2 {[%emt 0:00:00]} d4 {[%emt 0:00:00]} 27. c3 {[%emt 0:00:00]} dxc3 {[%emt 0:00:00]} 28. bxc3 {[%emt 0:00:00]} R4b7 {[%emt 0:00:00]} 29. c4 {[%emt 0:00:00]} Rb3 {[%emt 0:00:00]} 30. Rd1 {[%emt 0:00:00]} Nf5 {[%emt 0:00:00]} 31. Ne3 {[%emt 0:00:00]} Nxe3 {[%emt 0:00:00]} 32. Qxe3 {[%emt 0:00:00]} Qb6 {[%emt 0:00:00]} 33. Nd2 {[%emt 0:00:00]} Rb4 {[%emt 0:00:00]} 34. Bxc6 {[%emt 0:00:00]} Qxc6 {[%emt 0:00:00]} 35. Qe4 {[%emt 0:00:00]} Qc7 {[%emt 0:00:00]} 36. Rda1 {[%emt 0:00:00]} Nb6 {[%emt 0:00:00]} 37. Qf3 {[%emt 0:00:00]} Rd8 {[%emt 0:00:00]} 38. Ra3 {[%emt 0:00:00]} Qd7 {[%emt 0:02:49]} 39. Be3 {[%emt 0:00:00]} Be7 {[%emt 0:02:16]} 40. Ne4 {[%emt 0:01:20]} Rc8 {[%emt 0:03:07]} 41. Qg4 {[%emt 0:12:15]} Kh8 {[%emt 0:03:05]} 42. Qe2 {[%emt 0:03:07]} Qc7 {[%emt 0:02:33]} 43. Bf4 {[%emt 0:02:12]} Qc6 {[%emt 0:01:50]} 44. Kh2 {[%emt 0:02:50]} Rd8 {[%emt 0:06:08]} 45. Be3 {[%emt 0:07:56]} Nxc4 {[%emt 0:04:16]} 46. dxc4 {[%emt 0:00:10]} Qxe4 {[%emt 0:00:09]} 47. Rxa4 {[%emt 0:00:09]} Rxa4 {[%emt 0:07:40]} 48. Rxa4 {[%emt 0:00:06]} Rb8 {[%emt 0:00:31]} 49. Qf1 {[%emt 0:03:16]} Qxe5 {[%emt 0:03:06]} 50. Qh3 {[%emt 0:08:35]} Rb2 {[%emt 0:00:23]} 51. Kg1 {[%emt 0:01:08]} Rb1+ {[%emt 0:02:17]} 52. Kh2 {[%emt 0:00:04]} Qe4 {[%emt 0:00:04]} 53. Qg2 {[%emt 0:00:07]} Qg4 {[%emt 0:00:10]} 54. Qa8+ {[%emt 0:00:31]} Kh7 {[%emt 0:01:52]} 55. Kg2 {[%emt 0:01:36]} Qd1 {[%emt 0:00:58]} 0-1

[Event "94th FRA-ch Women 2019"]
[Site "Chartres"]
[Date "2019.08.22"]
[Round "6.3"]
[White "Navrotescu, Andreea-Cristiana"]
[Black "Milliet, Sophie"]
[Result "1/2-1/2"]
[ECO "E70"]
[WhiteElo "2210"]
[BlackElo "2397"]
[Annotator "NA"]
[PlyCount "130"]
[EventDate "2019.08.17"]
[EventType "tourn"]
[EventCountry "FRA"]
[SourceTitle "playchess.com"]
[Source "ChessBase"]
[SourceQuality "1"]
[TimeControl "40/5400+30:1800+30"]

1. d4 {[%emt 0:00:00]} Nf6 {[%emt 0:00:00]} 2. c4 {[%emt 0:00:00]} c5 {[%emt 0:00:00]} 3. d5 {[%emt 0:00:00]} g6 {[%emt 0:00:00]} 4. Nc3 {[%emt 0:00:00]} Bg7 {[%emt 0:00:03]} 5. e4 {[%emt 0:00:03]} d6 {[%emt 0:00:03]} 6. Nge2 {[%emt 0:00:13]} b5 {[%emt 0:02:55]} 7. cxb5 {[%emt 0:01:14]} a6 {[%emt 0:00:10]} 8. Ng3 {[%emt 0:01:29]} O-O {[%emt 0:02:04]} 9. a4 {[%emt 0:01:38]} h5 {[%emt 0:00:45]} 10. h4 {[%emt 0:08:28]} Ng4 {[%emt 0:14:26]} 11. f3 {[%emt 0:02:04]} Be5 {[%emt 0:01:32]} 12. Nge2 {[%emt 0:06:01]} axb5 {[%emt 0:00:45]} 13. fxg4 {[%emt 0:04:51]} Bxg4 {[%emt 0:00:05]} 14. Qc2 {[%emt 0:02:47]} Na6 {[%emt 0:01:12]} 15. Nf4 {[%emt 0:07:55]} Nb4 {[%emt 0:00:31]} 16. Qb1 {[%emt 0:03:23]} e6 {[%emt 0:02:20]} 17. Bxb5 {[%emt 0:08:24]} Qe7 {[%emt 0:30:31]} 18. Ra3 {[%emt 0:04:52]} c4 {[%emt 0:14:30]} 19. Nce2 {[%emt 0:08:16]} exd5 {[%emt 0:04:10]} 20. O-O {[%emt 0:11:40]} Qxh4 {[%emt 0:05:24]} 21. g3 {[%emt 0:00:38]} Qe7 {[%emt 0:00:52]} 22. Bd2 {[%emt 0:04:40]} Bxe2 {[%emt 0:07:23]} 23. Nxe2 {[%emt 0:01:08]} Nd3 {[%emt 0:00:07]} 24. Rxd3 {[%emt 0:03:01]} cxd3 {[%emt 0:00:09]} 25. Qxd3 {[%emt 0:00:11]} h4 {[%emt 0:04:22]} 26. Bf4 {[%emt 0:04:34]} hxg3 {[%emt 0:02:26]} 27. Qxg3 {[%emt 0:01:57]} Bxf4 {[%emt 0:03:08]} 28. Rxf4 {[%emt 0:00:13]} dxe4 {[%emt 0:00:08]} 29. Bc4 {[%emt 0:01:05]} d5 {[%emt 0:00:04]} 30. Bb5 {[%emt 0:01:04]} Rac8 {[%emt 0:00:07]} 31. Nd4 {[%emt 0:02:12]} Qc5 {[%emt 0:01:13]} 32. Qe3 {[%emt 0:00:43]} f5 {[%emt 0:02:06]} 33. Bd7 {[%emt 0:01:07]} Qc1+ {[%emt 0:00:48]} 34. Qxc1 {[%emt 0:00:07]} Rxc1+ {[%emt 0:00:00]} 35. Rf1 {[%emt 0:02:26]} Rc4 {[%emt 0:00:12]} 36. Rd1 {[%emt 0:00:26]} Rb8 {[%emt 0:01:03]} 37. b3 {[%emt 0:00:57]} Rc5 {[%emt 0:00:29]} 38. Be6+ {[%emt 0:01:03]} Kh7 {[%emt 0:00:42]} 39. Kf2 {[%emt 0:00:06]} f4 {[%emt 0:01:04]} 40. Bf7 {[%emt 0:02:33]} Rc3 {[%emt 0:01:39]} 41. Bxd5 {[%emt 0:30:47]} Re8 {[%emt 0:08:51]} 42. a5 {[%emt 0:00:00]} Re5 {[%emt 0:06:23]} 43. Ne2 {[%emt 0:00:00]} Rf3+ {[%emt 0:05:04]} 44. Ke1 {[%emt 0:00:00]} Re3 {[%emt 0:00:15]} 45. Kf2 {[%emt 0:00:00]} Rh5 {[%emt 0:03:56]} 46. Ng1 {[%emt 0:00:00]} Rh2+ {[%emt 0:07:53]} 47. Kf1 {[%emt 0:00:00]} f3 {[%emt 0:00:14]} 48. a6 {[%emt 0:00:00]} Ra2 {[%emt 0:00:03]} 49. Bc4 {[%emt 0:00:00]} Rc3 {[%emt 0:00:01]} 50. Bd5 {[%emt 0:00:00]} f2 {[%emt 0:02:18]} 51. Ne2 {[%emt 0:01:37]} Rcc2 {[%emt 0:00:00]} 52. a7 {[%emt 0:00:21]} Rxa7 {[%emt 0:00:16]} 53. Bxe4 {[%emt 0:00:06]} Rb2 {[%emt 0:00:17]} 54. Bd5 {[%emt 0:02:37]} Kh6 {[%emt 0:01:21]} 55. Kxf2 {[%emt 0:00:20]} Rd7 {[%emt 0:00:19]} 56. Rh1+ {[%emt 0:00:21]} Kg5 {[%emt 0:00:09]} 57. Bc4 {[%emt 0:00:18]} Rd8 {[%emt 0:00:24]} 58. Rg1+ {[%emt 0:00:21]} Kf6 {[%emt 0:00:01]} 59. Rg3 {[%emt 0:00:46]} g5 {[%emt 0:00:33]} 60. Re3 {[%emt 0:00:28]} Rd1 {[%emt 0:00:49]} 61. Kg3 {[%emt 0:00:51]} Kf5 {[%emt 0:00:59]} 62. Rf3+ {[%emt 0:01:24]} Kg6 {[%emt 0:00:20]} 63. Rf2 {[%emt 0:03:48]} Rdd2 {[%emt 0:00:38]} 64. Bf7+ {[%emt 0:00:47]} Kg7 {[%emt 0:00:06]} 65. Bc4 {[%emt 0:00:06]} Kg6 {[%emt 0:00:08]} 1/2-1/2

[Event "94th FRA-ch Women 2019"]
[Site "Chartres"]
[Date "2019.08.22"]
[Round "6.4"]
[White "Leconte, Maria"]
[Black "Monpeurt, Cyrielle"]
[Result "1-0"]
[ECO "C77"]
[WhiteElo "2252"]
[BlackElo "2171"]
[Annotator "NA"]
[PlyCount "111"]
[EventDate "2019.08.17"]
[EventType "tourn"]
[EventCountry "FRA"]
[SourceTitle "playchess.com"]
[Source "ChessBase"]
[SourceQuality "1"]
[TimeControl "40/5400+30:1800+30"]

1. e4 {[%emt 0:00:00]} e5 {[%emt 0:00:00]} 2. Nf3 {[%emt 0:00:00]} Nc6 {[%emt 0:00:00]} 3. Bb5 {[%emt 0:00:00]} a6 {[%emt 0:00:07]} 4. Ba4 {[%emt 0:00:00]} Nf6 {[%emt 0:00:14]} 5. d3 {[%emt 0:00:02]} b5 {[%emt 0:02:27]} 6. Bb3 {[%emt 0:00:08]} Be7 {[%emt 0:00:05]} 7. Nc3 {[%emt 0:02:14]} d6 {[%emt 0:01:37]} 8. a3 {[%emt 0:04:31]} Na5 {[%emt 0:04:41]} 9. Ba2 {[%emt 0:01:26]} c5 {[%emt 0:01:55]} 10. Nd5 {[%emt 0:03:38]} Nxd5 {[%emt 0:00:39]} 11. Bxd5 {[%emt 0:00:59]} Bb7 {[%emt 0:03:53]} 12. b4 {[%emt 0:02:33]} Bxd5 {[%emt 0:02:26]} 13. exd5 {[%emt 0:00:09]} Nb7 {[%emt 0:00:06]} 14. O-O {[%emt 0:17:20]} O-O {[%emt 0:02:58]} 15. c3 {[%emt 0:02:32]} Bf6 {[%emt 0:07:51]} 16. Nd2 {[%emt 0:28:22]} Bg5 {[%emt 0:03:28]} 17. Ne4 {[%emt 0:00:16]} Bxc1 {[%emt 0:00:09]} 18. Qxc1 {[%emt 0:00:05]} Rc8 {[%emt 0:11:27]} 19. f4 {[%emt 0:00:41]} f6 {[%emt 0:06:51]} 20. Qd2 {[%emt 0:03:57]} Qd7 {[%emt 0:05:58]} 21. Rac1 {[%emt 0:09:13]} Rc7 {[%emt 0:02:34]} 22. c4 {[%emt 0:01:34]} Rfc8 {[%emt 0:01:12]} 23. fxe5 {[%emt 0:02:00]} fxe5 {[%emt 0:06:30]} 24. Ng5 {[%emt 0:01:08]} Qg4 {[%emt 0:04:54]} 25. Ne6 {[%emt 0:00:51]} Re7 {[%emt 0:00:08]} 26. Qf2 {[%emt 0:03:08]} h6 {[%emt 0:00:04]} 27. h3 {[%emt 0:02:58]} Qg6 {[%emt 0:00:05]} 28. Qh4 {[%emt 0:00:38]} Rxe6 {[%emt 0:03:23]} 29. dxe6 {[%emt 0:00:17]} Qxe6 {[%emt 0:00:08]} 30. Qe4 {[%emt 0:00:37]} Nd8 {[%emt 0:00:51]} 31. cxb5 {[%emt 0:01:27]} axb5 {[%emt 0:01:17]} 32. bxc5 {[%emt 0:01:29]} dxc5 {[%emt 0:00:13]} 33. d4 {[%emt 0:02:36]} exd4 {[%emt 0:00:55]} 34. Qd3 {[%emt 0:01:02]} Qd7 {[%emt 0:04:26]} 35. Rce1 {[%emt 0:01:03]} Nf7 {[%emt 0:00:55]} 36. Re4 {[%emt 0:02:23]} Re8 {[%emt 0:04:19]} 37. Rf5 {[%emt 0:01:31]} Rxe4 {[%emt 0:10:52]} 38. Qxe4 {[%emt 0:00:05]} Ng5 {[%emt 0:00:02]} 39. Qa8+ {[%emt 0:04:21]} Kh7 {[%emt 0:00:04]} 40. Rxc5 {[%emt 0:00:51]} Qe7 {[%emt 0:00:47]} 41. Qd5 {[%emt 0:04:34]} Ne4 {[%emt 0:26:54]} 42. Rc6 {[%emt 0:01:22]} Ng3 {[%emt 0:02:12]} 43. Qe6 {[%emt 0:05:26]} Qg5 {[%emt 0:03:02]} 44. h4 {[%emt 0:03:49]} Qh5 {[%emt 0:00:06]} 45. Kf2 {[%emt 0:09:21]} Nh1+ {[%emt 0:02:07]} 46. Ke1 {[%emt 0:00:28]} Qxh4+ {[%emt 0:00:11]} 47. Kd2 {[%emt 0:00:47]} Qg5+ {[%emt 0:00:30]} 48. Kd3 {[%emt 0:00:53]} Ng3 {[%emt 0:01:39]} 49. Kxd4 {[%emt 0:02:39]} Nf5+ {[%emt 0:02:35]} 50. Kd3 {[%emt 0:01:53]} Qg3+ {[%emt 0:00:31]} 51. Ke4 {[%emt 0:00:36]} Qg4+ {[%emt 0:00:21]} 52. Ke5 {[%emt 0:00:38]} Qe2+ {[%emt 0:04:17]} 53. Kxf5 {[%emt 0:00:08]} Qf2+ {[%emt 0:00:07]} 54. Ke5 {[%emt 0:00:40]} Qg3+ {[%emt 0:00:44]} 55. Kd5 {[%emt 0:00:26]} Qxg2+ {[%emt 0:00:42]} 56. Qe4+ {[%emt 0:00:07]} 1-0

[Event "94th FRA-ch Women 2019"]
[Site "Chartres"]
[Date "2019.08.22"]
[Round "6.5"]
[White "Maisuradze, Nino"]
[Black "Broly, Mathilde"]
[Result "1-0"]
[ECO "A16"]
[WhiteElo "2203"]
[BlackElo "2177"]
[Annotator "NA"]
[PlyCount "85"]
[EventDate "2019.08.17"]
[EventType "tourn"]
[EventCountry "FRA"]
[SourceTitle "playchess.com"]
[Source "ChessBase"]
[SourceQuality "1"]
[TimeControl "40/5400+30:1800+30"]

1. c4 {[%emt 0:00:00]} Nf6 {[%emt 0:00:05]} 2. Nc3 {[%emt 0:00:00]} d5 {[%emt 0:02:13]} 3. cxd5 {[%emt 0:00:16]} Nxd5 {[%emt 0:00:21]} 4. g3 {[%emt 0:00:30]} Nb6 {[%emt 0:09:19]} 5. Bg2 {[%emt 0:01:22]} g6 {[%emt 0:00:40]} 6. Nf3 {[%emt 0:01:01]} Bg7 {[%emt 0:02:43]} 7. O-O {[%emt 0:01:15]} O-O {[%emt 0:08:24]} 8. d3 {[%emt 0:03:06]} c6 {[%emt 0:07:59]} 9. Qc2 {[%emt 0:04:47]} a5 {[%emt 0:07:02]} 10. Rb1 {[%emt 0:15:09]} Na6 {[%emt 0:04:57]} 11. a3 {[%emt 0:01:04]} Nc7 {[%emt 0:01:05]} 12. b3 {[%emt 0:15:00]} e5 {[%emt 0:12:42]} 13. Bb2 {[%emt 0:14:37]} f5 {[%emt 0:08:13]} 14. b4 {[%emt 0:04:02]} a4 {[%emt 0:04:28]} 15. Bc1 {[%emt 0:04:29]} Ncd5 {[%emt 0:07:47]} 16. Bd2 {[%emt 0:03:25]} h6 {[%emt 0:04:55]} 17. b5 {[%emt 0:01:20]} Qf6 {[%emt 0:01:04]} 18. bxc6 {[%emt 0:01:34]} bxc6 {[%emt 0:01:51]} 19. Nxd5 {[%emt 0:08:52]} Nxd5 {[%emt 0:00:28]} 20. Bb4 {[%emt 0:07:36]} Re8 {[%emt 0:01:06]} 21. Nd2 {[%emt 0:00:13]} Kh7 {[%emt 0:07:48]} 22. Bc5 {[%emt 0:03:11]} Ba6 {[%emt 0:01:13]} 23. Rfe1 {[%emt 0:05:23]} e4 {[%emt 0:03:16]} 24. dxe4 {[%emt 0:00:03]} Nc3 {[%emt 0:00:14]} 25. Rb4 {[%emt 0:02:30]} Nxe2+ {[%emt 0:00:46]} 26. Rxe2 {[%emt 0:01:28]} Bxe2 {[%emt 0:00:12]} 27. Bd4 {[%emt 0:00:05]} Qf7 {[%emt 0:01:18]} 28. Bxg7 {[%emt 0:00:14]} Qxg7 {[%emt 0:00:36]} 29. exf5 {[%emt 0:00:14]} Rad8 {[%emt 0:00:45]} 30. fxg6+ {[%emt 0:01:02]} Kh8 {[%emt 0:00:06]} 31. h4 {[%emt 0:01:04]} Qa1+ {[%emt 0:01:04]} 32. Kh2 {[%emt 0:00:16]} Qf6 {[%emt 0:00:10]} 33. Rf4 {[%emt 0:00:14]} Qe5 {[%emt 0:00:22]} 34. Qxc6 {[%emt 0:00:43]} Rxd2 {[%emt 0:00:19]} 35. Re4 {[%emt 0:00:09]} Bb5 {[%emt 0:00:35]} 36. g7+ {[%emt 0:00:48]} Kg8 {[%emt 0:00:47]} 37. Qxh6 {[%emt 0:00:12]} Qxg7 {[%emt 0:00:49]} 38. Qxd2 {[%emt 0:00:54]} Rxe4 {[%emt 0:00:40]} 39. Bxe4 {[%emt 0:00:04]} Bd7 {[%emt 0:00:12]} 40. Bd5+ {[%emt 0:00:48]} Kf8 {[%emt 0:00:50]} 41. Qf4+ {[%emt 0:01:06]} Ke8 {[%emt 0:07:10]} 42. h5 {[%emt 0:01:48]} Qh7 {[%emt 0:00:16]} 43. Qe4+ {[%emt 0:00:16]} 1-0

[Event "94th FRA-ch Women 2019"]
[Site "Chartres"]
[Date "2019.08.23"]
[Round "7.1"]
[White "Thomas, Anysia"]
[Black "Navrotescu, Andreea-Cristiana"]
[Result "0-1"]
[ECO "D30"]
[WhiteElo "2158"]
[BlackElo "2210"]
[Annotator "NA"]
[PlyCount "94"]
[EventDate "2019.08.17"]
[EventType "tourn"]
[EventCountry "FRA"]
[SourceTitle "playchess.com"]
[Source "ChessBase"]
[SourceQuality "1"]
[TimeControl "40/5400+30:1800+30"]

1. d4 {[%emt 0:00:00]} Nf6 {[%emt 0:00:00]} 2. c4 {[%emt 0:00:00]} e6 {[%emt 0:00:00]} 3. g3 {[%emt 0:00:00]} d5 {[%emt 0:00:00]} 4. Nf3 {[%emt 0:00:00]} Bb4+ {[%emt 0:00:00]} 5. Bd2 {[%emt 0:00:01]} Bd6 {[%emt 0:00:00]} 6. Bg2 {[%emt 0:00:43]} c6 {[%emt 0:00:07]} 7. Qc2 {[%emt 0:01:10]} O-O {[%emt 0:00:27]} 8. O-O {[%emt 0:00:25]} Nbd7 {[%emt 0:00:58]} 9. Bc3 {[%emt 0:06:35]} Ne4 {[%emt 0:03:40]} 10. Nfd2 {[%emt 0:03:48]} f5 {[%emt 0:05:49]} 11. Nxe4 {[%emt 0:07:04]} fxe4 {[%emt 0:06:25]} 12. f3 {[%emt 0:01:20]} exf3 {[%emt 0:03:53]} 13. Rxf3 {[%emt 0:02:07]} Rxf3 {[%emt 0:01:53]} 14. Bxf3 {[%emt 0:00:06]} dxc4 {[%emt 0:04:50]} 15. Nd2 {[%emt 0:04:53]} Nb6 {[%emt 0:00:27]} 16. Be4 {[%emt 0:07:08]} h6 {[%emt 0:01:18]} 17. Rf1 {[%emt 0:07:30]} Bd7 {[%emt 0:06:18]} 18. Bh7+ {[%emt 0:10:14]} Kh8 {[%emt 0:00:01]} 19. Ne4 {[%emt 0:00:39]} Be8 {[%emt 0:08:00]} 20. Nxd6 {[%emt 0:16:30]} Qxd6 {[%emt 0:00:24]} 21. Be4 {[%emt 0:08:42]} Bh5 {[%emt 0:11:23]} 22. e3 {[%emt 0:01:36]} Rf8 {[%emt 0:01:23]} 23. Rxf8+ {[%emt 0:04:24]} Qxf8 {[%emt 0:00:13]} 24. Ba5 {[%emt 0:02:08]} Nd5 {[%emt 0:03:00]} 25. Bd2 {[%emt 0:04:14]} Be2 {[%emt 0:03:46]} 26. Qc1 {[%emt 0:02:16]} Nf6 {[%emt 0:00:42]} 27. Bg2 {[%emt 0:00:17]} Bd3 {[%emt 0:01:26]} 28. Qe1 {[%emt 0:00:59]} Be4 {[%emt 0:00:45]} 29. Bb4 {[%emt 0:01:08]} Qf7 {[%emt 0:00:52]} 30. Qf1 {[%emt 0:04:48]} Bxg2 {[%emt 0:00:25]} 31. Kxg2 {[%emt 0:00:03]} b5 {[%emt 0:00:22]} 32. Bd6 {[%emt 0:00:34]} Kg8 {[%emt 0:00:50]} 33. Bf4 {[%emt 0:02:18]} Qg6 {[%emt 0:01:45]} 34. Kg1 {[%emt 0:00:49]} Qf5 {[%emt 0:03:46]} 35. Qe1 {[%emt 0:02:01]} Qc2 {[%emt 0:01:02]} 36. Qf2 {[%emt 0:00:45]} Qb1+ {[%emt 0:02:11]} 37. Kg2 {[%emt 0:00:06]} Qxa2 {[%emt 0:00:13]} 38. Bd6 {[%emt 0:00:33]} Qb1 {[%emt 0:00:19]} 39. Ba3 {[%emt 0:01:01]} Qe4+ {[%emt 0:00:34]} 40. Kg1 {[%emt 0:00:10]} Ng4 {[%emt 0:00:34]} 41. Qf4 {[%emt 0:08:41]} Qxe3+ {[%emt 0:00:09]} 42. Qxe3 {[%emt 0:00:03]} Nxe3 {[%emt 0:00:01]} 43. Kf2 {[%emt 0:00:35]} Nd5 {[%emt 0:00:02]} 44. Bc5 {[%emt 0:00:07]} a5 {[%emt 0:00:09]} 45. Kf3 {[%emt 0:00:42]} b4 {[%emt 0:00:18]} 46. Ke4 {[%emt 0:00:20]} a4 {[%emt 0:00:06]} 47. Ke5 {[%emt 0:01:35]} a3 {[%emt 0:00:26]} 0-1